bitfinex/quotes_SOLUSD_20250912
["timestamp","ask_amount","ask_price","bid_price","bid_amount"]
[1757655705967,0.03,238.64,238.57,26.28]
[1757655706166,0.03,238.64,238.58,14.9501316]
[1757655706479,0.71,238.63,238.58,14.6701316]
[1757655706686,0.71,238.62,238.58,14.6701316]
[1757655707475,0.03,238.64,238.58,14.6701316]
[1757655709181,0.71,238.63,238.58,14.6701316]
[1757655709379,0.71,238.62,238.58,14.6701316]
[1757655709584,0.03,238.64,238.58,14.6701316]
[1757655710094,0.71,238.63,238.56,4.19176205]
[1757655710393,0.71,238.62,238.55,26.0]
[1757655710688,0.71,238.61,238.55,26.0]
[1757655710900,0.71,238.61,238.57,26.0]
[1757655711465,0.71,238.63,238.57,26.0]
[1757655711985,0.71,238.63,238.58,4.19146617]
[1757655712183,0.71,238.62,238.58,4.19146617]
[1757655712776,0.71,238.61,238.58,4.19146617]
[1757655714082,0.71,238.63,238.58,4.19146617]
[1757655714283,0.71,238.62,238.58,4.19146617]
[1757655715403,0.71,238.61,238.58,4.19146617]
[1757655715799,0.71,238.6,238.58,4.19146617]
[1757655715992,0.71,238.59,238.55,4.19199329]
[1757655716299,0.71,238.58,238.53,4.31222002]
[1757655716474,0.71,238.57,238.53,4.31222002]
[1757655716676,0.71,238.56,238.53,4.31222002]
[1757655717009,0.71,238.55,238.53,30.31222002]
[1757655717301,4.19115208,238.6,238.53,26.12]
[1757655717605,7.87976108,238.59,238.53,0.12]
[1757655717806,0.71,238.59,238.53,4.31230432]
[1757655717999,0.71,238.58,238.53,4.31230432]
[1757655718189,0.71,238.57,238.53,4.31230432]
[1757655718392,0.71,238.56,238.53,4.31230432]
[1757655718602,11.36091316,238.6,238.53,4.31230432]
[1757655718603,0.71,238.55,238.53,4.31230432]
[1757655719879,4.19131686,238.59,238.53,4.31230432]
[1757655720081,0.71,238.54,238.53,4.31230432]
[1757655722006,0.71,238.58,238.54,4.19216902]
[1757655722398,0.71,238.61,238.54,4.19216902]
[1757655722588,0.71,238.61,238.54,14.67259159]
[1757655722794,0.71,238.6,238.54,14.67259159]
[1757655722992,0.03,238.64,238.58,26.0]
[1757655723205,0.03,238.64,238.59,0.28]
[1757655723415,0.03,238.64,238.6,33.42]
[1757655723709,0.03,238.64,238.63,26.0]
[1757655726198,0.03,238.64,238.63,30.19058793]
[1757655727424,0.74,238.64,238.6,33.42]
[1757655727721,0.71,238.63,238.61,26.0]
[1757655728216,0.71,238.63,238.61,30.1908878]
[1757655728996,0.03,238.64,238.61,26.0]
[1757655729389,0.03,238.64,238.61,30.1908845]
[1757655729718,0.74,238.64,238.61,30.1908845]
[1757655730017,0.03,238.64,238.61,30.1908845]
[1757655730218,0.74,238.64,238.61,30.1908845]
[1757655731624,0.03,238.64,238.61,30.1908845]
[1757655732318,0.03,238.64,238.61,4.4708845]
[1757655732524,0.03,238.64,238.61,14.94823247]
[1757655732707,0.03,238.64,238.61,14.66823247]
[1757655733225,0.74,238.64,238.61,4.1908845]
[1757655733413,0.03,238.64,238.61,4.1908845]
[1757655734112,0.03,238.64,238.61,14.66823247]
[1757655734507,0.03,238.64,238.61,4.1908845]
[1757655734708,0.03,238.64,238.61,30.1908845]
[1757655735203,0.03,238.64,238.61,4.1908845]
[1757655735401,0.74,238.64,238.61,4.1908845]
[1757655735596,0.03,238.64,238.61,4.1908845]
[1757655735900,7.16976108,238.62,238.51,0.28]
[1757655736100,4.22049054,238.64,238.5,0.12]
[1757655736101,7.87976108,238.61,238.5,0.12]
[1757655736411,7.87976108,238.61,238.52,26.12]
[1757655736812,7.87976108,238.61,238.56,26.0]
[1757655737016,0.71,238.6,238.57,26.0]
[1757655737207,0.71,238.63,238.57,26.0]
[1757655737604,0.71,238.62,238.58,4.19146617]
[1757655737833,0.71,238.61,238.58,4.19146617]
[1757655740810,0.71,238.61,238.57,14.67074652]
[1757655743734,0.71,238.6,238.55,4.1918207]
[1757655743933,0.71,238.59,238.55,4.1918207]
[1757655744428,4.77377687,238.62,238.55,4.1918207]
[1757655744615,0.71,238.58,238.55,4.1918207]
[1757655745235,0.7,238.57,238.56,26.0]
[1757655745801,0.7,238.57,238.53,4.31225106]
[1757655746114,0.7,238.57,238.53,14.793113]
[1757655747338,0.73,238.63,238.56,26.0]
[1757655747833,0.73,238.63,238.57,26.0]
[1757655749636,0.73,238.63,238.58,14.6701316]
[1757655749843,0.7,238.62,238.58,14.6701316]
[1757655750939,0.03,238.63,238.58,14.6701316]
[1757655751148,0.73,238.63,238.58,14.6701316]
[1757655751350,0.03,238.63,238.58,14.9501316]
[1757655751534,0.03,238.63,238.58,14.6701316]
[1757655751738,0.7,238.62,238.58,14.6701316]
[1757655752131,0.7,238.61,238.58,10.47866543]
[1757655752942,0.7,238.6,238.53,0.12]
[1757655753114,1.88688349,238.59,238.54,4.19216902]
[1757655753317,0.7,238.58,238.54,4.19216902]
[1757655753847,0.7,238.57,238.54,4.19216902]
[1757655754643,0.7,238.56,238.54,4.19216902]
[1757655755819,0.7,238.55,238.53,0.12]
[1757655756020,0.7,238.54,238.53,4.31234477]
[1757655756230,0.7,238.56,238.53,4.31234477]
[1757655756447,0.7,238.55,238.53,0.12]
[1757655756748,0.7,238.55,238.53,4.31232818]
[1757655757821,0.7,238.58,238.54,4.31216902]
[1757655758242,0.7,238.57,238.54,4.31216902]
[1757655758435,1.88688349,238.59,238.54,4.31216902]
[1757655758631,0.7,238.58,238.54,4.31216902]
[1757655759133,0.7,238.57,238.54,4.31216902]
[1757655759335,0.7,238.56,238.54,4.31216902]
[1757655759655,0.7,238.55,238.54,0.12]
[1757655761944,2.58688349,238.58,238.54,4.31216902]
[1757655762122,1.88688349,238.59,238.54,4.31216902]
[1757655762327,0.7,238.57,238.54,4.31216902]
[1757655763544,2.58688349,238.59,238.54,4.31216902]
[1757655763739,0.7,238.58,238.54,4.31216902]
[1757655763945,1.88688349,238.6,238.54,4.31216902]
[1757655764136,0.7,238.57,238.54,4.31216902]
[1757655764856,1.88688349,238.61,238.54,4.31216902]
[1757655765036,0.7,238.6,238.54,4.31216902]
[1757655765433,0.7,238.59,238.54,4.31216902]
[1757655765635,1.88688349,238.61,238.54,4.31216902]
[1757655765879,0.7,238.58,238.54,4.31216902]
[1757655766961,0.7,238.57,238.54,4.31216902]
[1757655767133,0.7,238.56,238.54,4.31216902]
[1757655767332,0.7,238.55,238.54,0.12]
[1757655769462,2.58688349,238.55,238.54,0.12]
[1757655770742,6.77887678,238.55,238.54,0.12]
[1757655771553,2.58688349,238.55,238.54,0.12]
[1757655771958,6.77887678,238.55,238.54,0.12]
[1757655772145,2.58688349,238.55,238.54,0.12]
[1757655772350,20.37447079,238.55,238.54,0.12]
[1757655773660,16.1824775,238.55,238.54,0.12]
[1757655773968,13.59559401,238.6,238.54,4.31215584]
[1757655774167,13.59559401,238.62,238.54,4.31215584]
[1757655774468,0.7,238.59,238.54,4.31215584]
[1757655774653,0.65,238.58,238.54,4.31215584]
[1757655774969,0.03,238.63,238.55,0.28]
[1757655775349,2.56688349,238.63,238.54,40.79257841]
[1757655775550,0.65,238.62,238.54,40.79257841]
[1757655775751,0.65,238.62,238.54,30.31215584]
[1757655776346,0.03,238.59,238.54,30.31215584]
[1757655776545,0.03,238.59,238.55,0.28]
[1757655776746,0.03,238.59,238.56,0.28]
[1757655776961,0.03,238.59,238.57,4.19164186]
[1757655777969,0.68,238.59,238.55,4.19199329]
[1757655778955,0.03,238.59,238.55,4.19199329]
[1757655779161,0.65,238.58,238.55,4.19199329]
[1757655779550,0.03,238.59,238.55,4.19199329]
[1757655779750,0.03,238.59,238.55,4.47199329]
[1757655780060,0.03,238.59,238.55,4.19199329]
[1757655780260,0.68,238.59,238.55,4.19199329]
[1757655781978,0.65,238.58,238.54,26.12]
[1757655782150,0.03,238.59,238.54,0.12]
[1757655782151,0.65,238.57,238.54,0.12]
[1757655782350,1.91688349,238.59,238.54,0.12]
[1757655782575,0.65,238.56,238.54,0.12]
[1757655783262,1.91688349,238.59,238.54,0.12]
[1757655783462,0.65,238.58,238.54,0.12]
[1757655783781,0.65,238.57,238.54,0.12]
[1757655784774,0.65,238.56,238.54,0.12]
[1757655785878,13.59559401,238.58,238.54,0.12]
[1757655786093,0.65,238.55,238.54,0.12]
[1757655786773,2.53688349,238.55,238.54,0.12]
[1757655786961,0.65,238.55,238.54,0.12]
[1757655787288,1.88688349,238.57,238.54,0.12]
[1757655787585,2.53688349,238.57,238.54,0.12]
[1757655787761,0.65,238.56,238.54,0.12]
[1757655788652,16.1624775,238.59,238.54,0.12]
[1757655788879,0.65,238.58,238.54,0.12]
[1757655789690,0.65,238.58,238.54,4.31216812]
[1757655790172,0.65,238.57,238.54,4.31216812]
[1757655790373,0.65,238.57,238.54,0.12]
[1757655791399,0.65,238.56,238.54,0.12]
[1757655791693,2.53688349,238.56,238.54,0.12]
[1757655791865,0.65,238.55,238.54,0.12]
[1757655792468,2.53688349,238.58,238.54,0.12]
[1757655792870,0.65,238.57,238.54,0.12]
[1757655793601,0.65,238.57,238.54,4.31216789]
[1757655793895,0.03,238.59,238.54,4.59216789]
[1757655794269,0.03,238.59,238.54,4.31216789]
[1757655794469,0.68,238.59,238.54,4.31216789]
[1757655795962,0.03,238.59,238.54,15.07259046]
[1757655796161,0.03,238.59,238.55,0.28]
[1757655796902,0.03,238.59,238.56,0.28]
[1757655797195,0.03,238.59,238.57,0.28]
[1757655797779,0.03,238.59,238.55,0.28]
[1757655797982,0.03,238.59,238.56,0.28]
[1757655798188,0.68,238.59,238.56,4.19164589]
[1757655798679,0.68,238.59,238.54,4.31205903]
[1757655798875,0.65,238.58,238.54,4.31205903]
[1757655799077,0.65,238.57,238.54,4.31205903]
[1757655799491,0.03,238.59,238.55,26.0]
[1757655800493,0.68,238.59,238.56,4.19181757]
[1757655800798,0.65,238.58,238.56,4.19181757]
[1757655801294,0.03,238.59,238.56,4.19181757]
[1757655801601,0.68,238.59,238.56,4.19181757]
[1757655802282,0.65,238.58,238.55,26.0]
[1757655802977,0.03,238.59,238.55,26.0]
[1757655803176,0.68,238.59,238.55,26.0]
[1757655803407,0.68,238.59,238.55,30.19195318]
[1757655803709,0.03,238.59,238.55,30.19195318]
[1757655803872,0.03,238.59,238.55,4.47195318]
[1757655804078,0.03,238.59,238.56,0.28]
[1757655804489,0.68,238.59,238.55,14.67193641]
[1757655804698,0.68,238.59,238.55,4.19195318]
[1757655805018,0.71,238.58,238.55,4.19195318]
[1757655805312,0.03,238.59,238.55,4.19195318]
[1757655805608,0.03,238.59,238.55,30.19195318]
[1757655806511,0.74,238.59,238.55,30.19195318]
[1757655806803,0.03,238.59,238.55,30.19195318]
[1757655810812,0.74,238.59,238.55,30.19195318]
[1757655811490,0.03,238.59,238.56,0.28]
[1757655811695,0.03,238.59,238.55,40.67193641]
[1757655811915,0.03,238.59,238.55,40.95193641]
[1757655814008,0.03,238.59,238.55,40.67193641]
[1757655814702,0.71,238.58,238.55,40.67193641]
[1757655815001,0.03,238.59,238.55,40.67193641]
[1757655815194,0.03,238.59,238.56,0.28]
[1757655816009,0.03,238.59,238.55,40.67193641]
[1757655816200,0.03,238.59,238.57,0.28]
[1757655816597,0.03,238.59,238.55,73.97193641]
[1757655816797,0.03,238.59,238.56,0.28]
[1757655817627,0.03,238.59,238.57,4.19164186]
[1757655818820,0.03,238.59,238.56,14.6713615]
[1757655821832,0.03,238.59,238.56,4.19181757]
[1757655825034,0.74,238.59,238.56,4.19181757]
[1757655825438,0.71,238.58,238.56,4.19181757]
[1757655825617,0.03,238.59,238.56,14.9513615]
[1757655826229,0.03,238.59,238.56,14.6713615]
[1757655831240,0.03,238.59,238.56,14.9513615]
[1757655831546,0.03,238.59,238.58,26.0]
[1757655831741,0.03,238.59,238.58,59.26]
[1757655831933,0.03,238.59,238.58,63.73146617]
[1757655833555,1e-08,238.66,238.63,13.59559401]
[1757655833724,1e-08,238.66,238.64,33.26]
[1757655833922,1e-08,238.66,238.65,4.19023674]
[1757655834122,1e-08,238.66,238.65,63.45023674]
[1757655836946,0.68000001,238.66,238.65,4.19023674]
[1757655837132,1e-08,238.66,238.65,4.19023674]
[1757655838432,0.68000001,238.66,238.65,37.43023674]
[1757655838654,1e-08,238.66,238.65,37.43023674]
[1757655842651,0.68000001,238.66,238.65,33.24]
[1757655842951,0.68000001,238.66,238.64,33.24]
[1757655843152,0.68,238.65,238.64,33.24]
[1757655843336,0.68,238.65,238.63,4.19058793]
[1757655843537,0.68,238.65,238.63,37.43058793]
[1757655844248,1e-08,238.66,238.63,37.43058793]
[1757655844449,0.68000001,238.66,238.63,37.43058793]
[1757655845045,1e-08,238.66,238.63,47.90705777]
[1757655845235,1e-08,238.66,238.63,48.18705777]
[1757655845950,1e-08,238.66,238.63,49.58311736]
[1757655846151,1e-08,238.66,238.65,0.12]
[1757655846353,1e-08,238.66,238.65,33.34]
[1757655846538,1e-08,238.66,238.65,37.53023674]
[1757655847134,0.68000001,238.66,238.65,37.53023674]
[1757655847338,1e-08,238.66,238.65,4.31023674]
[1757655847544,1e-08,238.66,238.65,4.59023674]
[1757655848252,0.68000001,238.66,238.65,0.12]
[1757655848962,1e-08,238.66,238.65,37.81023674]
[1757655849463,1e-08,238.66,238.65,58.82801478]
[1757655849663,1e-08,238.68,238.65,69.30360665]
[1757655849830,1e-08,238.69,238.68,26.0]
[1757655850128,1e-08,238.69,238.68,59.22]
[1757655850328,1e-08,238.69,238.68,59.5]
[1757655850748,1e-08,238.69,238.68,63.68971007]
[1757655851330,1e-08,238.69,238.68,63.40971007]
[1757655853552,1e-08,238.69,238.68,30.18971007]
[1757655853746,1e-08,238.69,238.68,63.40971007]
[1757655853957,1e-08,238.69,238.68,30.18971007]
[1757655854162,0.68000001,238.69,238.68,63.38971007]
[1757655855564,1e-08,238.69,238.68,63.38971007]
[1757655856968,1e-08,238.69,238.68,63.66971007]
[1757655857470,1e-08,238.69,238.68,63.38971007]
[1757655858054,1e-08,238.69,238.68,65.06527819]
[1757655858770,1e-08,238.69,238.68,65.34527819]
[1757655859157,1e-08,238.69,238.68,65.06527819]
[1757655860946,1e-08,238.69,238.68,31.86527819]
[1757655861271,1e-08,238.69,238.68,65.06527819]
[1757655863887,1e-08,238.69,238.68,65.18527819]
[1757655864253,1e-08,238.69,238.68,31.98527819]
[1757655864470,1e-08,238.69,238.68,65.18527819]
[1757655865664,1e-08,238.69,238.68,79.0608722]
[1757655865858,1e-08,238.69,238.68,78.7808722]
[1757655866951,0.03,238.74,238.72,39.59559401]
[1757655867156,0.03,238.74,238.69,13.59559401]
[1757655867157,0.03,238.74,238.73,46.77559401]
[1757655867557,0.1,238.89,238.77,26.0]
[1757655867764,0.1,238.89,238.76,26.0]
[1757655867765,0.1,238.89,238.78,53.1818589]
[1757655867960,0.1,238.89,238.8,13.59559401]
[1757655868161,0.1,238.89,238.81,33.18]
[1757655868359,0.1,238.89,238.82,13.59559401]
[1757655868675,0.1,238.89,238.83,33.18]
[1757655868975,0.1,238.89,238.84,47.83416177]
[1757655869182,0.1,238.89,238.85,33.18]
[1757655869476,0.1,238.89,238.84,14.65416177]
[1757655869978,0.1,238.89,238.85,33.18]
[1757655870180,0.1,238.89,238.86,33.18]
[1757655870755,0.1,238.89,238.87,33.18]
[1757655870957,0.1,238.89,238.88,4.18620227]
[1757655871381,0.1,238.98,238.88,50.96179628]
[1757655871578,0.8,238.98,238.91,26.0]
[1757655871754,0.8,238.98,238.95,26.0]
[1757655871955,0.8,238.98,238.96,33.18]
[1757655872155,0.8,238.98,238.95,34.85395535]
[1757655872364,0.7,238.97,238.95,1.67395535]
[1757655872573,0.7,238.96,238.95,34.85395535]
[1757655872972,0.7,238.96,238.95,5.85893128]
[1757655873292,0.7,238.96,238.93,4.18523408]
[1757655873502,0.7,238.96,238.94,33.16]
[1757655873865,0.7,238.95,238.91,1.67409546]
[1757655874114,0.7,238.94,238.91,1.67409546]
[1757655874391,0.7,238.93,238.9,4.18579853]
[1757655874793,0.7,238.96,238.91,59.16]
[1757655874998,0.1,238.98,238.92,4.18550142]
[1757655874999,0.7,238.95,238.92,4.18550142]
[1757655875201,0.7,238.94,238.92,4.18550142]
[1757655875490,0.7,238.93,238.92,4.18550142]
[1757655875693,0.7,238.93,238.91,33.16]
[1757655875874,0.7,238.92,238.91,33.16]
[1757655876580,4.28449613,238.98,238.89,4.18594512]
[1757655876785,0.7,238.95,238.9,33.16]
[1757655876992,0.7,238.94,238.91,4.18567661]
[1757655877796,0.1,238.98,238.91,4.18567661]
[1757655877997,0.7,238.93,238.91,4.18567661]
[1757655878188,0.7,238.96,238.91,4.18567661]
[1757655878496,0.7,238.95,238.9,33.16]
[1757655878802,0.7,238.94,238.9,37.3458228]
[1757655879004,0.7,238.97,238.9,37.3458228]
[1757655879195,0.7,238.97,238.9,47.81045235]
[1757655880906,0.1,238.98,238.9,52.09474695]
[1757655881079,0.7,238.96,238.91,33.14]
[1757655881279,0.7,238.95,238.91,33.14]
[1757655881799,0.7,238.95,238.92,4.18550142]
[1757655883181,0.76,238.95,238.92,4.18550142]
[1757655883386,0.7,238.94,238.91,33.14]
[1757655883600,0.7,238.93,238.89,33.14]
[1757655883808,0.7,238.92,238.89,35.12469415]
[1757655883982,4.24504317,238.95,238.89,1.98469415]
[1757655884184,1.88469415,238.92,238.88,0.03]
[1757655884393,0.7,238.94,238.88,0.03]
[1757655884394,1.88469415,238.9,238.88,0.03]
[1757655884989,0.7,238.89,238.88,0.03]
[1757655888416,6.07022071,238.92,238.88,0.03]
[1757655888586,0.7,238.91,238.88,0.03]
[1757655889009,0.7,238.9,238.88,0.03]
[1757655889398,0.7,238.89,238.88,0.03]
[1757655889595,0.7,238.91,238.88,0.03]
[1757655889816,0.7,238.93,238.88,0.03]
[1757655890023,0.06,238.95,238.88,0.69]
[1757655890699,0.7,238.94,238.88,0.03]
[1757655891914,4.88516123,238.94,238.88,0.03]
[1757655892590,1.88469415,238.9,238.88,0.03]
[1757655893092,0.7,238.89,238.88,0.03]
[1757655894824,2.58469415,238.89,238.88,0.03]
[1757655895709,16.18028816,238.89,238.88,0.03]
[1757655895908,2.58469415,238.89,238.88,0.03]
[1757655896219,0.7,238.89,238.88,0.03]
[1757655896526,2.58469415,238.89,238.88,0.03]
[1757655896720,0.7,238.89,238.88,0.03]
[1757655896901,2.58469415,238.89,238.88,0.03]
[1757655897625,2.59469415,238.92,238.88,0.03]
[1757655897923,1.88469415,238.92,238.88,0.03]
[1757655898125,0.71,238.91,238.88,0.03]
[1757655898632,2.59469415,238.93,238.88,0.03]
[1757655899128,4.89550665,238.92,238.88,0.03]
[1757655899929,0.71,238.91,238.88,0.03]
[1757655900825,0.71,238.9,238.88,0.03]
[1757655901120,2.59469415,238.93,238.88,0.03]
[1757655901327,0.71,238.93,238.88,0.03]
[1757655901505,0.71,238.92,238.88,0.03]
[1757655901901,0.71,238.91,238.88,0.03]
[1757655902513,0.71,238.9,238.88,0.03]
[1757655902702,1.88469415,238.93,238.88,0.03]
[1757655902897,0.71,238.92,238.88,0.03]
[1757655903412,0.06,238.9,238.88,0.03]
[1757655904310,0.06,238.9,238.89,0.71]
[1757655904513,0.06,238.9,238.89,4.89602704]
[1757655905610,0.06,238.93,238.92,26.0]
[1757655905924,0.06,238.93,238.92,59.12]
[1757655906130,0.06,238.93,238.92,26.71]
[1757655906315,0.06,238.93,238.92,59.83]
[1757655906511,0.06,238.93,238.92,64.01550142]
[1757655907029,1e-08,238.95,238.93,13.59559401]
[1757655907235,1e-08,238.95,238.93,14.30559401]
[1757655907413,1e-08,238.95,238.93,13.59559401]
[1757655907622,1e-08,238.95,238.94,0.71]
[1757655908238,1.0,239.0,238.95,13.59559401]
[1757655908569,1.0,239.0,238.99,13.59559401]
[1757655908570,0.03,239.0,238.99,13.59559401]
[1757655908736,0.03,239.0,238.99,72.69559401]
[1757655909046,0.03,239.0,238.99,40.01402155]
[1757655909201,0.03,239.0,238.99,73.11402155]
[1757655909823,0.03,239.0,238.99,78.4343353]
[1757655910204,0.71,239.16,239.07,26.0]
[1757655910408,0.1,239.19,239.11,26.0]
[1757655910834,0.81,239.19,239.15,26.0]
[1757655911016,4.99081212,239.19,239.11,26.0]
[1757655911215,2.69469415,239.19,239.12,33.1]
[1757655911835,0.81,239.19,239.12,33.1]
[1757655912131,1.88469415,239.16,239.07,26.0]
[1757655912357,0.71,239.15,239.08,33.1]
[1757655912639,0.71,239.15,239.08,59.1]
[1757655913234,0.71,239.15,239.09,33.08]
[1757655913539,0.71,239.15,239.1,4.18235048]
[1757655913836,1.88469415,239.12,239.05,33.08]
[1757655914226,1.88469415,239.12,239.05,37.26318988]
[1757655914529,1.88469415,239.12,239.03,4.1834983]
[1757655914712,1.88469415,239.12,239.04,33.08]
[1757655914713,0.71,239.11,239.04,33.08]
[1757655914913,1.88469415,239.1,238.95,13.59559401]
[1757655915106,0.71,239.09,238.97,13.59559401]
[1757655915335,0.71,239.09,239.0,26.0]
[1757655915530,4.89261994,239.09,239.01,4.18392535]
[1757655915841,1.88469415,239.04,238.98,33.08]
[1757655916226,1.88469415,239.05,238.98,33.08]
[1757655916423,1.88469415,239.05,238.94,14.64802878]
[1757655916424,4.75870828,239.02,238.94,4.18515108]
[1757655916616,4.75870828,239.02,238.95,33.08]
[1757655916851,5.46870828,239.04,238.95,33.08]
[1757655917018,5.46870828,239.04,238.95,59.08]
[1757655917422,0.71,239.03,238.91,0.1]
[1757655917744,0.71,239.13,238.97,13.59559401]
[1757655917949,0.71,239.13,239.01,26.0]
[1757655918747,4.89185965,239.13,239.02,4.18375031]
[1757655918947,4.75870828,239.1,239.02,4.18375031]
[1757655919147,0.71,239.09,239.02,33.08]
[1757655919454,4.75870828,239.08,239.02,33.08]
[1757655919631,4.75870828,239.08,239.01,59.08]
[1757655920020,0.71,239.09,239.01,63.26385493]
[1757655920219,4.75870828,239.12,239.01,63.26385493]
[1757655920421,0.71,239.13,239.01,73.72366832]
[1757655921054,0.71,239.12,239.01,73.72366832]
[1757655921346,0.71,239.11,239.01,73.72366832]
[1757655921923,0.06,239.08,239.01,73.72366832]
[1757655922152,0.06,239.08,239.05,26.0]
[1757655922336,0.06,239.08,239.06,33.08]
[1757655922849,0.06,239.08,239.06,37.26300373]
[1757655923053,0.06,239.08,239.06,33.08]
[1757655924049,0.06,239.08,239.04,26.0]
[1757655924252,0.06,239.08,239.04,33.08]
[1757655924929,0.06,239.08,239.04,37.26337012]
[1757655926924,0.06,239.08,239.04,47.72187078]
[1757655927551,0.06,239.08,239.07,26.0]
[1757655928960,0.06,239.08,239.07,30.1828753]
[1757655929451,0.06,239.08,239.07,63.2628753]
[1757655929865,0.06,239.08,239.07,4.1828753]
[1757655930032,0.06,239.08,239.07,37.2628753]
[1757655932345,0.06,239.11,239.1,26.0]
[1757655932545,0.06,239.11,239.1,59.06]
[1757655933072,1e-08,239.11,239.1,76.83794449]
[1757655936435,1e-08,239.11,239.1,63.24235048]
[1757655936842,1e-08,239.11,239.1,30.18235048]
[1757655937043,1e-08,239.11,239.1,63.24235048]
[1757655938941,0.68000001,239.11,239.1,30.18235048]
[1757655939144,0.68000001,239.11,239.1,63.24235048]
[1757655939674,0.68000001,239.11,239.1,33.06]
[1757655939877,0.68000001,239.11,239.08,33.06]
[1757655940078,0.68,239.1,239.08,33.06]
[1757655940375,0.68,239.09,239.07,40.03]
[1757655940583,0.68,239.08,239.07,40.03]
[1757655941965,4.18225206,239.11,239.07,40.03]
[1757655941966,1e-08,239.11,239.1,26.0]
[1757655942156,1e-08,239.11,239.1,59.06]
[1757655942864,1e-08,239.11,239.1,72.65559401]
[1757655943074,1e-08,239.11,239.1,77.25617953]
[1757655944165,1e-08,239.11,239.1,76.83794449]
[1757655944670,1e-08,239.11,239.1,63.24235048]
[1757655944981,0.68000001,239.11,239.1,4.18235048]
[1757655945187,1e-08,239.11,239.1,37.24235048]
[1757655945476,1e-08,239.11,239.1,50.83794449]
[1757655945850,1e-08,239.11,239.1,63.26235048]
[1757655946251,0.68000001,239.11,239.1,63.26235048]
[1757655947454,0.68000001,239.11,239.07,40.03]
[1757655947661,0.68,239.1,239.07,44.21270678]
[1757655947978,0.68,239.09,239.07,44.21270678]
[1757655948170,0.68,239.08,239.07,40.03]
[1757655948678,0.68000001,239.11,239.08,4.18270035]
[1757655948876,0.68,239.1,239.08,37.28270035]
[1757655949890,1e-08,239.11,239.08,37.28270035]
[1757655950082,0.68,239.09,239.08,37.28270035]
[1757655957693,1e-08,239.11,239.08,47.73945122]
[1757655958068,0.72,239.1,239.08,47.73945122]
[1757655958270,1e-08,239.11,239.08,47.73945122]
[1757655958479,0.72,239.1,239.08,47.73945122]
[1757655958687,0.72,239.09,239.08,47.73945122]
[1757655958989,0.72000001,239.11,239.08,47.73945122]
[1757655959170,0.72,239.1,239.08,47.73945122]
[1757655959379,0.72,239.09,239.08,47.73945122]
[1757655960396,0.72,239.09,239.08,37.28270035]
[1757655960690,0.72,239.09,239.08,4.18270035]
[1757655962700,1e-08,239.11,239.08,4.18270035]
[1757655962874,1e-08,239.11,239.09,33.06]
[1757655963485,1e-08,239.11,239.1,4.18235048]
[1757655964595,1e-08,239.11,239.1,17.77794449]
[1757655965994,1e-08,239.11,239.1,50.83794449]
[1757655966797,1e-08,239.11,239.1,63.24235048]
[1757655967174,1e-08,239.11,239.1,37.24235048]
[1757655968484,1e-08,239.11,239.1,50.83794449]
[1757655970204,1e-08,239.13,239.12,26.0]
[1757655970369,1e-08,239.14,239.13,13.59559401]
[1757655971902,1e-08,239.14,239.13,17.77741979]